[Event "ROU-chT Women Superliga 2018"]
[Site "Sovata"]
[Date "2018.11.29"]
[Round "5"]
[White "Pelin, Ana-Maria"]
[Black "Aciu, Malina-Andreea"]
[Result "0-1"]
[ECO "D25"]
[WhiteElo "1751"]
[BlackElo "1976"]
[Annotator "NA RC"]
[PlyCount "64"]
[EventDate "2018.11.24"]
[EventType "team-tourn"]
[EventCountry "ROU"]
[SourceTitle "playchess.com"]
[Source "ChessBase"]
[SourceQuality "1"]
[TimeControl "40/5400+30:1800+30"]

1. d4 {[%emt 0:00:00]} d5 {[%emt 0:00:00]} 2. c4 {[%emt 0:00:00]} dxc4 {[%emt 0:00:00]} 3. Nf3 {[%emt 0:00:00]} Nf6 {[%emt 0:00:00]} 4. e3 {[%emt 0:00:00]} Bg4 {[%emt 0:00:00] LiveBook: 1383 Games} 5. Bxc4 {[%emt 0:00:09]} e6 {[%emt 0:00:00]} 6. O-O {[%emt 0:00:51]} Nc6 {[%emt 0:00:09]} 7. Nc3 {[%emt 0:01:24]} Bd6 {[%emt 0:00:14] D07: Queen's Gambit: Chigorin Defence} 8. a3 {[%emt 0:12:46]} (8. Bb5 O-O 9. h3 Bh5 10. b3 Nb4 11. Be2 c5 12. a3 cxd4 13. Nxd4 Bxe2 14. Qxe2 Nbd5 15. Nxd5 Nxd5 {1-0 (45) Lenic,L (2662)-Kriebel,T (2520) Batumi 2018}) 8... O-O {[%emt 0:00:14]} 9. b4 {[%emt 0:00:20]} Qe7 $146 {[%emt 0:03:05]} ({Predecessor:} 9... e5 10. dxe5 Nxe5 11. Be2 Qe7 12. Nd4 Rad8 13. h3 Bc8 14. Qc2 Ng6 15. Nf3 {½-½ (27) Loheac Amoun,F-Johannessen,S Nice 1974}) 10. Bb2 {[%emt 0:05:09]} Rad8 {[%emt 0:03:52]} (10... e5 $5 {[%cal Re5e4]}) 11. Be2 {[%emt 0:04:48]} e5 {[%emt 0:11:25]} 12. b5 {[%emt 0:09:40]} (12. d5 $11 e4 13. Nd2 Bxe2 14. Qxe2) 12... exd4 {[%emt 0:09:19]} 13. Nxd4 {[%emt 0:04:33]} Qe5 {[%emt 0:06:43]} 14. g3 {[%emt 0:03:39]} Nxd4 {[%emt 0:00:29]} 15. exd4 {[%emt 0:02:23]} Qh5 {[%emt 0:02:26]} 16. Qc2 {[%emt 0:04:17]} Rfe8 {[%emt 0:03:23]} 17. f3 {[%emt 0:01:27]} Bf5 {[%emt 0:03:08]} 18. Bd3 {[%emt 0:11:07]} Bh3 {[%emt 0:04:43]} 19. Rf2 {[%emt 0:05:38]} Re7 {[%emt 0:07:58]} 20. Ne4 {[%emt 0:04:39]} Nd5 $11 {[%emt 0:03:28]} 21. Qd2 {[%emt 0:07:06]} Rde8 {[%emt 0:03:12]} 22. Qg5 {[%emt 0:03:57]} Qxg5 {[%emt 0:01:59]} 23. Nxg5 {[%emt 0:01:13]} Re1+ {[%emt 0:01:09]} 24. Rxe1 {[%emt 0:02:14]} Rxe1+ {[%emt 0:00:06]} 25. Bf1 {[%emt 0:00:05]} Rxf1+ {[%emt 0:10:00]} 26. Rxf1 {[%emt 0:00:11]} Bxf1 {[%emt 0:00:03]} 27. Kxf1 {[%emt 0:00:03]} Ne3+ {[%emt 0:00:04]} 28. Ke2 {[%emt 0:00:33]} Nc4 {[%emt 0:00:03]} 29. Bc3 Nxa3 {[%emt 0:00:20]} 30. Ne4 {[%emt 0:02:56]} Nxb5 {[%emt 0:00:10]} 31. Nxd6 {[%emt 0:01:57]} Nxc3+ {[%emt 0:00:53]} 32. Kd3 {[%emt 0:00:03]} cxd6 {[%emt 0:00:05]} 0-1

[Event "ROU-chT Women Superliga 2018"]
[Site "Sovata"]
[Date "2018.11.29"]
[Round "5"]
[White "Popa, Catalina-Elena"]
[Black "Visanescu, Daria-Ioana"]
[Result "0-1"]
[ECO "D00"]
[WhiteElo "1746"]
[BlackElo "2096"]
[Annotator "NA RC"]
[PlyCount "98"]
[EventDate "2018.11.24"]
[EventType "team-tourn"]
[EventCountry "ROU"]
[SourceTitle "playchess.com"]
[Source "ChessBase"]
[SourceQuality "1"]
[TimeControl "40/5400+30:1800+30"]

1. d4 {[%emt 0:00:00]} d5 {[%emt 0:01:34]} 2. Bf4 {[%emt 0:00:00]} e6 {[%emt 0:00:35]} 3. e3 {[%emt 0:00:24]} Nf6 {[%emt 0:00:38]} 4. Nf3 {[%emt 0:02:09]} Bd6 {[%emt 0:00:15]} 5. Ne5 {[%emt 0:03:05]} O-O {[%emt 0:03:17]} 6. Nd2 {[%emt 0:00:20]} c5 {[%emt 0:03:17]} 7. c3 {[%emt 0:00:08] D02: 1 d4 d5 2 Nf3 sidelines, including 2...Nf6 3 g3 and 2...Nf6 3 Bf4} b6 {[%emt 0:00:30]} (7... Nc6 8. Nxc6 bxc6 9. dxc5 Bxc5 10. Bd3 Bd6 11. Bg5 h6 12. Bh4 a5 13. O-O Be7 14. e4 Ba6 15. Bxa6 Rxa6 {½-½ (54) Mamedyarov,S (2804)-Khachiyan,M (2522) chess.com INT 2018}) 8. Bd3 {[%emt 0:02:53]} h6 {[%emt 0:01:40]} 9. Bg3 $146 {[%emt 0:00:58]} ({Predecessor:} 9. Qf3 Bb7 10. Qh3 Ne4 11. f3 Ng5 12. Qh5 f5 13. h4 {1-0 (40) Fritsch,J (1789)-Perk,E (1682) Binz 2014}) 9... Bb7 {[%emt 0:00:57]} 10. f4 {[%emt 0:01:31]} Ne4 {[%emt 0:03:11]} 11. Ndf3 {[%emt 0:12:42]} Nd7 {[%emt 0:10:30]} 12. O-O {[%emt 0:04:34]} Nxe5 {[%emt 0:07:41]} 13. fxe5 {[%emt 0:02:46]} Be7 {[%emt 0:00:40]} 14. Qe1 {[%emt 0:01:27]} c4 {[%emt 0:02:29]} (14... Qc8 $11) 15. Bxe4 {[%emt 0:08:05]} dxe4 {[%emt 0:00:09]} 16. Nd2 {[%emt 0:00:04]} b5 {[%emt 0:00:58]} 17. Qe2 {[%emt 0:01:47]} Qd5 {[%emt 0:07:54]} (17... Rc8 $11) 18. Qg4 {[%emt 0:08:45]} f5 {[%emt 0:02:53]} 19. exf6 {[%emt 0:09:07]} Bxf6 {[%emt 0:00:08]} 20. Rae1 {[%emt 0:02:30]} e5 {[%emt 0:03:50]} 21. Rf5 {[%emt 0:03:27]} Bc8 {[%emt 0:00:52]} 22. Nxe4 {[%emt 0:01:34]} Bxf5 {[%emt 0:01:18]} 23. Qxf5 {[%emt 0:00:03] [#]} Bh4 $1 {[%emt 0:02:30]} 24. Qg6 {[%emt 0:08:36]} Bxg3 {[%emt 0:00:38]} 25. Nxg3 {[%emt 0:00:26]} Qf7 {[%emt 0:04:11]} 26. Qxf7+ {[%emt 0:01:37]} Rxf7 {[%emt 0:02:27]} 27. d5 {[%emt 0:00:36]} Rd8 {[%emt 0:01:24]} 28. e4 {[%emt 0:00:39]} g6 {[%emt 0:00:10]} 29. Re2 {[%emt 0:02:53]} Kf8 {[%emt 0:01:06]} 30. Nf1 {[%emt 0:01:32]} Ke7 {[%emt 0:00:24]} 31. Nd2 {[%emt 0:00:42]} Kd6 {[%emt 0:00:51]} 32. Nf3 {[%emt 0:00:22]} a5 {[%emt 0:01:29]} 33. Rc2 {[%emt 0:08:54]} Rc8 {[%emt 0:04:21]} 34. a3 {[%emt 0:01:17]} g5 {[%emt 0:12:35]} 35. h3 {[%emt 0:00:41]} Rg8 {[%emt 0:03:56]} 36. Nd2 {[%emt 0:04:20]} (36. Rf2 $142) 36... g4 {[%emt 0:01:37]} 37. h4 {[%emt 0:00:29]} g3 {[%emt 0:00:04]} 38. a4 {[%emt 0:05:49]} Kc5 {[%emt 0:09:16]} 39. axb5 {[%emt 0:00:55]} Kxb5 {[%emt 0:00:12]} 40. b3 {[%emt 0:00:00]} cxb3 {[%emt 0:00:00]} 41. Nxb3 {[%emt 0:01:48]} Kc4 {[%emt 0:03:17]} 42. Nxa5+ {[%emt 0:03:18]} Kd3 {[%emt 0:00:05] Double Attack} 43. Rc1 {[%emt 0:00:21]} Rgf8 {[%emt 0:06:22]} 44. Re1 {[%emt 0:08:05]} Kd2 {[%emt 0:02:07]} 45. Ra1 $2 {[%emt 0:00:15]} (45. Rb1) 45... Ke2 {[%emt 0:05:31]} 46. Ra2+ {[%emt 0:00:04]} Kd3 {[%emt 0:00:32] Double Attack} 47. Ra1 {[%emt 0:00:18]} Ra8 {[%emt 0:01:11]} 48. c4 {[%emt 0:13:27]} Rfa7 {[%emt 0:01:37]} 49. Ra3+ {[%emt 0:00:16]} Kxe4 {[%emt 0:00:23]} 0-1

[Event "ROU-chT Women Superliga 2018"]
[Site "Sovata"]
[Date "2018.11.29"]
[Round "5"]
[White "Patru, Alexandra-Ioana"]
[Black "Stanciu, Andreea-Briana"]
[Result "0-1"]
[ECO "A46"]
[WhiteElo "1631"]
[BlackElo "1953"]
[Annotator "NA RC"]
[PlyCount "139"]
[EventDate "2018.11.24"]
[EventType "team-tourn"]
[EventCountry "ROU"]
[SourceTitle "playchess.com"]
[Source "ChessBase"]
[SourceQuality "1"]
[TimeControl "40/5400+30:1800+30"]

1. d4 {[%emt 0:00:00]} Nf6 2. Nf3 {[%emt 0:00:01]} e6 {[%emt 0:00:43]} 3. c4 {[%emt 0:00:45]} d5 {[%emt 0:00:09]} 4. e3 {[%emt 0:00:07]} Nbd7 {[%emt 0:02:15]} 5. Bd3 {[%emt 0:03:16]} c6 {[%emt 0:00:35]} 6. Nbd2 {[%emt 0:04:26]} Be7 {[%emt 0:02:12]} 7. b3 {[%emt 0:00:52]} O-O {[%emt 0:00:10]} 8. Bb2 {[%emt 0:00:05]} b6 {[%emt 0:00:13]} 9. O-O {[%emt 0:00:09]} Bb7 {[%emt 0:00:44]} 10. Ne5 {[%emt 0:01:53]} Nxe5 {[%emt 0:02:32]} 11. dxe5 {[%emt 0:00:06]} Nd7 {[%emt 0:00:02]} 12. Qg4 {[%emt 0:09:39] D30: Queen's Gambit Declined: Systems without Nc3} (12. Qh5 g6 13. Qh3 Nc5 14. Bc2 f5 15. Rfd1 Qe8 16. cxd5 exd5 17. Nf3 Ne6 18. Nd4 Bc8 19. g4 c5 20. Nxe6 Bxe6 {½-½ (35) Prusikin,M (2552)-Novkovic,M (2413) Austria 2007}) 12... Nc5 $146 {[%emt 0:03:07]} ({Predecessor:} 12... c5 13. Rad1 Qc7 14. f4 g6 15. Nf3 Rad8 16. h4 Rfe8 17. h5 Nf8 18. f5 exf5 19. Bxf5 d4 20. exd4 Bxf3 21. Rxf3 cxd4 {1-0 (29) Castaneda,J (2228)-Trujillo Chaverra,F (2095) Medellin 2015}) 13. Bc2 {[%emt 0:00:35]} Qe8 {[%emt 0:05:51]} 14. f4 {[%emt 0:02:34]} f5 {[%emt 0:00:20]} 15. Qh3 {[%emt 0:03:25]} (15. exf6 $1 $14 Bxf6 16. Bxf6 Rxf6 17. Nf3) 15... a5 {[%emt 0:04:12]} 16. cxd5 {[%emt 0:06:25]} cxd5 {[%emt 0:01:34]} 17. Nf3 {[%emt 0:02:18]} Ne4 {[%emt 0:04:20]} 18. Bxe4 {[%emt 0:03:22]} dxe4 {[%emt 0:00:04]} 19. Nd4 {[%emt 0:00:13]} Bc5 {[%emt 0:03:44]} 20. Rfd1 {[%emt 0:01:47]} Bd5 {[%emt 0:00:35]} 21. a3 {[%emt 0:08:59]} Rc8 {[%emt 0:08:05]} 22. Rdc1 {[%emt 0:09:05]} Qe7 {[%emt 0:06:01]} 23. Qg3 {[%emt 0:06:25]} g6 {[%emt 0:11:00]} 24. Qe1 {[%emt 0:04:56]} h6 {[%emt 0:01:01]} 25. Qd1 {[%emt 0:15:09]} g5 {[%emt 0:02:42]} 26. g3 {[%emt 0:05:56]} gxf4 {[%emt 0:00:26]} 27. gxf4 {[%emt 0:00:49]} Kh7 {[%emt 0:05:26]} 28. Kh1 {[%emt 0:00:37]} Rg8 {[%emt 0:00:54]} 29. b4 {[%emt 0:05:17]} Qg7 {[%emt 0:04:31]} (29... Qh4 $19 {is more deadly.} 30. bxc5 bxc5 31. Nxe6 Qh3) 30. Qe2 {[%emt 0:03:44]} axb4 {[%emt 0:01:24]} 31. axb4 $17 {[%emt 0:00:06]} Bxb4 {[%emt 0:00:07]} 32. Rxc8 {[%emt 0:00:08]} Rxc8 {[%emt 0:00:07]} 33. Rg1 {[%emt 0:00:45]} Qf7 {[%emt 0:01:07]} 34. Qa6 {[%emt 0:01:27]} Rb8 {[%emt 0:00:15]} 35. Qb5 {[%emt 0:00:38]} Bc5 {[%emt 0:00:51]} 36. Qf1 {[%emt 0:00:26]} b5 {[%emt 0:04:35]} 37. Rg3 {[%emt 0:00:56]} Bc4 {[%emt 0:00:58]} 38. Qg2 {[%emt 0:00:26]} Rg8 {[%emt 0:01:35]} 39. Ba1 {[%emt 0:00:34]} Rxg3 {[%emt 0:00:22]} 40. hxg3 {[%emt 0:00:00]} Qh5+ {[%emt 0:00:00]} 41. Qh2 {[%emt 0:00:52]} Qxh2+ {[%emt 0:04:24]} 42. Kxh2 {[%emt 0:00:09]} b4 {[%emt 0:00:30]} 43. Bb2 {[%emt 0:00:17]} Kg6 {[%emt 0:00:25]} 44. Kh3 {[%emt 0:00:38]} Kh5 {[%emt 0:02:44]} 45. Kg2 {[%emt 0:01:16]} Kg4 {[%emt 0:00:30]} 46. Ba1 {[%emt 0:00:20]} b3 {[%emt 0:01:16]} 47. Bb2 {[%emt 0:00:04]} h5 {[%emt 0:01:26]} 48. Kf2 {[%emt 0:03:30]} h4 {[%emt 0:03:52]} 49. gxh4 {[%emt 0:00:06]} Kxh4 {[%emt 0:00:05]} 50. Nc6 {[%emt 0:01:15]} Kg4 {[%emt 0:01:17]} 51. Nd4 {[%emt 0:00:22]} Kh5 {[%emt 0:02:32]} 52. Nc6 {[%emt 0:04:07]} Kg6 {[%emt 0:02:00]} 53. Bc1 {[%emt 0:01:17]} Kf7 {[%emt 0:04:32]} 54. Nd8+ {[%emt 0:01:37]} Ke7 {[%emt 0:00:09]} 55. Nb7 {[%emt 0:00:19]} Bb4 {[%emt 0:00:20]} 56. Nd6 {[%emt 0:00:47]} Ba6 {[%emt 0:01:16]} 57. Bb2 {[%emt 0:01:03]} Bd2 {[%emt 0:01:24]} 58. Ba3 {[%emt 0:00:59]} Kd7 {[%emt 0:00:10]} 59. Bb2 {[%emt 0:00:05]} Kc6 {[%emt 0:00:28]} 60. Nf7 {[%emt 0:00:16]} Kd5 {[%emt 0:01:05]} 61. Nd6 {[%emt 0:00:50]} Kc5 {[%emt 0:00:55]} 62. Ba3+ {[%emt 0:00:28]} Kb6 {[%emt 0:00:43]} 63. Bb2 {[%emt 0:00:49]} Ka5 {[%emt 0:00:17]} 64. Nf7 {[%emt 0:00:23]} Kb4 {[%emt 0:00:43]} 65. Nd8 {[%emt 0:00:17]} Bc8 {[%emt 0:01:44]} 66. Nc6+ {[%emt 0:00:10] [#]} Kc4 $19 {[%emt 0:00:06]} 67. Nd4 {[%emt 0:02:05]} Bc3 {[%emt 0:00:19]} 68. Bc1 {[%emt 0:00:14]} b2 {[%emt 0:00:09]} 69. Bxb2 {[%emt 0:00:05]} Bxb2 {[%emt 0:00:04]} 70. Nc6 {[%emt 0:00:27] Kd4} 0-1

[Event "ROU-chT Women Superliga 2018"]
[Site "Sovata"]
[Date "2018.11.30"]
[Round "6"]
[White "Lehaci, Miruna-Daria"]
[Black "Aciu, Malina-Andreea"]
[Result "1-0"]
[ECO "B54"]
[WhiteElo "2067"]
[BlackElo "1976"]
[Annotator "NA RC"]
[PlyCount "101"]
[EventDate "2018.11.24"]
[EventType "team-tourn"]
[EventCountry "ROU"]
[SourceTitle "playchess.com"]
[Source "ChessBase"]
[SourceQuality "1"]
[TimeControl "40/5400+30:1800+30"]

1. e4 {[%emt 0:00:00]} c5 {[%emt 0:00:00]} 2. Nf3 {[%emt 0:00:00]} d6 {[%emt 0:00:17]} 3. d4 {[%emt 0:00:00]} cxd4 {[%emt 0:00:04]} 4. Nxd4 {[%emt 0:00:00]} Nf6 {[%emt 0:00:06]} 5. f3 {[%emt 0:00:00]} e5 {[%emt 0:00:04]} 6. Nb3 {[%emt 0:00:03]} Be7 {[%emt 0:00:58]} 7. c4 {[%emt 0:00:50]} Be6 {[%emt 0:02:54]} 8. Be3 {[%emt 0:14:36] B55: Sicilian: 2...d6 3 d4 cxd4 4 Nxd4 Nf6 5 f3} (8. Nc3 Nbd7 9. Be3 O-O 10. Be2 Rc8 11. Nd5 Bxd5 12. cxd5 Nb6 13. O-O Nfd7 14. Na5 Rc7 15. Qd2 f5 16. exf5 Rxf5 {½-½ (27) Oleksienko,M (2621)-Areshchenko,A (2666) Al Ain 2014}) 8... O-O {[%emt 0:03:34]} 9. Nc3 {[%emt 0:00:23]} a6 {[%emt 0:00:59]} 10. Be2 {[%emt 0:02:08]} Nbd7 {[%emt 0:04:59] LiveBook: 3 Games} 11. O-O {[%emt 0:01:49]} Rc8 {[%emt 0:04:41]} 12. Nd2 {[%emt 0:04:09]} Nh5 {[%emt 0:08:06]} 13. Nd5 {[%emt 0:04:46]} (13. g3 $5 {[%cal Rf3f4]}) 13... Bxd5 {[%emt 0:02:00]} 14. cxd5 {[%emt 0:01:04]} Bg5 {[%emt 0:10:30]} 15. Bf2 {[%emt 0:04:35]} g6 $146 {[%emt 0:04:40]} ({Predecessor:} 15... Nf4) 16. Re1 {[%emt 0:09:37]} f5 {[%emt 0:08:13]} 17. Bf1 {[%emt 0:00:32]} Qc7 {[%emt 0:03:59]} 18. b3 {[%emt 0:11:28]} Ndf6 {[%emt 0:06:26]} 19. g3 {[%emt 0:11:08]} Ng7 {[%emt 0:08:50]} 20. Bh3 {[%emt 0:01:57]} b5 {[%emt 0:03:14]} 21. Nf1 {[%emt 0:04:55]} Qf7 {[%emt 0:08:07]} 22. Ne3 {[%emt 0:14:31]} Nd7 {[%emt 0:01:24]} 23. Qe2 {[%emt 0:00:48]} Nc5 {[%emt 0:01:49]} 24. Rf1 {[%emt 0:00:54]} Rce8 {[%emt 0:00:54]} 25. Nc2 {[%emt 0:01:17]} h5 {[%emt 0:05:32]} 26. Nb4 {[%emt 0:04:51]} ({White should try} 26. Kh1 $16) 26... Qb7 {[%emt 0:00:47]} 27. Nd3 {[%emt 0:01:00]} (27. Qc2 $16) 27... Nxd3 {[%emt 0:01:40]} 28. Qxd3 {[%emt 0:00:03]} Rf7 {[%emt 0:02:23]} 29. b4 {[%emt 0:01:59]} Ref8 {[%emt 0:00:41]} 30. Bg2 {[%emt 0:00:01]} Rc7 {[%emt 0:01:12]} 31. Be1 {[%emt 0:02:18]} Rc4 {[%emt 0:01:00]} 32. a4 {[%emt 0:00:54]} Rfc8 {[%emt 0:02:04]} 33. Kh1 {[%emt 0:01:49]} Rc2 {[%emt 0:02:48]} 34. f4 {[%emt 0:00:59]} exf4 {[%emt 0:00:50]} 35. gxf4 {[%emt 0:00:25]} Bf6 {[%emt 0:00:02]} 36. Ra3 {[%emt 0:00:42]} Qb6 {[%emt 0:00:57]} 37. axb5 {[%emt 0:00:38]} axb5 {[%emt 0:00:54]} 38. Ra8 {[%emt 0:00:19]} Rxa8 {[%emt 0:00:27]} 39. Qxc2 {[%emt 0:00:03]} Qb7 {[%emt 0:00:21]} (39... Ra1 $11 {remains equal.}) 40. e5 {[%emt 0:00:00]} dxe5 $2 {[%emt 0:00:00]} (40... Rc8 $16 {was called for.} 41. Bc3 Be7) 41. fxe5 {[%emt 0:01:05]} Bxe5 {[%emt 0:03:48] [#]} 42. d6 $1 {[%emt 0:00:17]} Qc8 {[%emt 0:07:16]} 43. Qb3+ {[%emt 0:00:33]} Kh7 {[%emt 0:00:39]} 44. d7 {[%emt 0:00:32]} Qg8 {[%emt 0:02:28]} 45. Bd5 {[%emt 0:04:32]} Qd8 {[%emt 0:00:50]} 46. Bxa8 {[%emt 0:00:17]} Qxa8+ {[%emt 0:00:06]} 47. Qf3 {[%emt 0:00:05]} Qxf3+ {[%emt 0:03:22]} 48. Rxf3 {[%emt 0:00:05]} Bf6 {[%emt 0:00:04]} 49. Rd3 {[%emt 0:00:37]} Bd8 {[%emt 0:01:10]} 50. Re3 $18 {[%emt 0:00:51]} f4 {[%emt 0:05:43]} 51. Re8 {[%emt 0:00:11]} 1-0

[Event "ROU-chT Women Superliga 2018"]
[Site "Sovata"]
[Date "2018.11.30"]
[Round "6"]
[White "Ciolacu, Alessia-Mihaela"]
[Black "Visanescu, Daria-Ioana"]
[Result "1-0"]
[ECO "D35"]
[WhiteElo "1972"]
[BlackElo "2096"]
[Annotator "NA RC"]
[PlyCount "79"]
[EventDate "2018.11.24"]
[EventType "team-tourn"]
[EventCountry "ROU"]
[SourceTitle "playchess.com"]
[Source "ChessBase"]
[SourceQuality "1"]
[TimeControl "40/5400+30:1800+30"]

1. d4 {[%emt 0:00:00]} d5 {[%emt 0:00:00]} 2. c4 {[%emt 0:00:00]} e6 {[%emt 0:00:00]} 3. Nc3 {[%emt 0:00:00]} Nf6 {[%emt 0:00:01]} 4. cxd5 {[%emt 0:00:02]} exd5 {[%emt 0:00:40]} 5. Bg5 {[%emt 0:00:21]} Be7 {[%emt 0:00:36]} 6. e3 {[%emt 0:00:22]} O-O {[%emt 0:01:10]} 7. Bd3 {[%emt 0:00:08]} h6 {[%emt 0:01:33]} 8. Bh4 {[%emt 0:00:18]} c6 {[%emt 0:01:01]} 9. Qc2 {[%emt 0:04:09]} Be6 {[%emt 0:00:25]} 10. Nge2 {[%emt 0:00:29]} Nh5 {[%emt 0:01:41]} 11. Bxe7 {[%emt 0:00:30]} Qxe7 {[%emt 0:00:07]} 12. O-O {[%emt 0:00:24]} Nd7 {[%emt 0:00:35]} 13. Rae1 {[%emt 0:01:07] D36: Queen's Gambit Declined: Exchange Variation: Main line (5 Bg5 c6 6 Qc2)} f5 {[%emt 0:09:47]} (13... g6 14. f3 Ng7 15. Qd2 Qg5 16. Nf4 Rae8 17. g3 h5 18. Qf2 h4 19. g4 c5 20. Nce2 Qe7 {1-0 (38) Zilberman,Y (2513)-Zoler,D (2524) Israel 1999}) 14. Nf4 {[%emt 0:00:45]} Nxf4 {[%emt 0:00:46]} 15. exf4 {[%emt 0:00:05]} Qd6 {[%emt 0:00:19]} 16. g3 $146 {[%emt 0:00:49]} ({Predecessor:} 16. Re3 Rae8 17. Rfe1 g6 18. g3 Bf7 19. Qa4 a6 20. Rxe8 Rxe8 21. Rxe8+ Bxe8 {0-1 (39) Kim,I (1836)-Tracy,J (2179) San Francisco 2016}) 16... Rae8 {[%emt 0:02:15]} 17. Kg2 {[%emt 0:00:32]} Rf6 {[%emt 0:21:50]} 18. h4 {[%emt 0:08:54]} Kf7 {[%emt 0:10:40]} 19. Ne2 {[%emt 0:03:35]} Rg8 {[%emt 0:00:21]} 20. h5 {[%emt 0:04:54]} Rc8 {[%emt 0:02:14]} 21. Ng1 {[%emt 0:09:26]} c5 {[%emt 0:02:02]} 22. Nf3 {[%emt 0:01:21]} Nf8 {[%emt 0:07:40]} 23. Re5 {[%emt 0:05:12]} cxd4 {[%emt 0:06:16]} 24. Qb1 {[%emt 0:16:11]} Qb6 {[%emt 0:08:09]} 25. Rfe1 {[%emt 0:10:57]} Kg8 {[%emt 0:00:46]} 26. Bxf5 {[%emt 0:02:37]} Bxf5 {[%emt 0:03:01]} 27. Rxf5 {[%emt 0:00:06]} Rd8 {[%emt 0:02:27]} 28. Re7 {[%emt 0:02:04]} Qb4 {[%emt 0:01:19]} 29. Rc7 {[%emt 0:05:21]} Qb6 {[%emt 0:03:12]} 30. Re7 {[%emt 0:01:02]} Qb4 {[%emt 0:00:20]} 31. Rfe5 {[%emt 0:03:47]} Qc4 {[%emt 0:03:02]} 32. Rxb7 {[%emt 0:03:31]} d3 {[%emt 0:03:33]} 33. Ree7 {[%emt 0:01:47]} Ne6 {[%emt 0:00:47]} 34. f5 {[%emt 0:10:14]} Ng5 {[%emt 0:00:04]} 35. Qe1 {[%emt 0:02:52]} Ne4 {[%emt 0:03:01]} 36. Rxg7+ {[%emt 0:00:45]} Kh8 {[%emt 0:01:07]} 37. Qa5 {[%emt 0:01:31]} Re8 {[%emt 0:01:05]} 38. Rh7+ {[%emt 0:00:31]} Kg8 {[%emt 0:00:02]} 39. Rbg7+ {[%emt 0:00:25]} Kf8 {[%emt 0:00:11]} 40. Qxa7 {[%emt 0:00:00]} 1-0

[Event "ROU-chT Women Superliga 2018"]
[Site "Sovata"]
[Date "2018.11.30"]
[Round "6"]
[White "Stanciu, Andreea-Briana"]
[Black "Nastase, Andreea-Cristina"]
[Result "1/2-1/2"]
[ECO "A03"]
[WhiteElo "1953"]
[BlackElo "1900"]
[Annotator "NA RC"]
[PlyCount "99"]
[EventDate "2018.11.24"]
[EventType "team-tourn"]
[EventCountry "ROU"]
[SourceTitle "playchess.com"]
[Source "ChessBase"]
[SourceQuality "1"]
[TimeControl "40/5400+30:1800+30"]

{[%evp 27,88,0,0,0,2,-36,32767,32767,32767,0,0,-72,-50,-80,-88,-117,-125,-138,-51,-62,-33,-42,-101,-112,-100,-109,-135,32767,-69,-79,32767,-111,-112,32767,32767,32767,32767,32767,0,-186,32767,-56,32767,-35,-11,-8,0,32767,-11,-24,-50,-23,32767,32767,32767,-50,0,32767,32767,-7,32767,0,0]} 1. f4 {[%emt 0:00:00]} d5 {[%emt 0:00:00]} 2. Nf3 {[%emt 0:00:00]} c5 {[%emt 0:00:00]} 3. e3 {[%emt 0:00:00]} Nc6 {[%emt 0:00:00]} 4. Bb5 {[%emt 0:00:00]} a6 {[%emt 0:02:09]} 5. Bxc6+ {[%emt 0:00:00] A03: Bird's Opening with 1...d5} bxc6 {[%emt 0:00:02]} 6. b3 {[%emt 0:00:19]} f6 {[%emt 0:03:36]} 7. Bb2 {[%emt 0:05:41]} Nh6 {[%emt 0:00:19]} 8. O-O {[%emt 0:02:42]} e6 {[%emt 0:00:21]} 9. d3 {[%emt 0:01:12]} Bd6 $146 {[%emt 0:00:26]} ({Predecessor:} 9... Nf5 10. Qe1 Qb6 11. Kh1 c4 12. e4 cxb3 13. axb3 dxe4 14. dxe4 Ne3 15. Bd4 Bc5 16. Qxe3 {1-0 (16) Lopez,F (2250)-Gonzalez Perez,L (2235) England 1994}) 10. Nbd2 {[%emt 0:01:40]} O-O {[%emt 0:00:39]} 11. g3 {[%emt 0:05:08]} Ng4 {[%emt 0:04:58]} 12. Qe2 {[%emt 0:00:57]} e5 {[%emt 0:00:44]} 13. h3 {[%emt 0:01:58]} Nxe3 {[%emt 0:05:50]} 14. Qxe3 {[%emt 0:00:46]} exf4 {[%emt 0:00:02]} 15. gxf4 {[%emt 0:00:26]} Bxh3 {[%emt 0:00:03]} 16. Rfe1 {[%emt 0:22:14]} (16. Nd4 $5 Qd7 17. f5 Bxf1 18. Ne6 $11) 16... Qe8 {[%emt 0:04:53]} 17. Qxe8 {[%emt 0:01:25]} Raxe8 {[%emt 0:00:02]} 18. Rxe8 {[%emt 0:09:37]} (18. Ba3 $16) 18... Rxe8 {[%emt 0:00:10]} 19. Kh2 {[%emt 0:00:04]} (19. Kf2 $11 {keeps the balance.}) 19... Bd7 {[%emt 0:00:04]} 20. Kg3 {[%emt 0:00:11] [#]} g5 $1 {[%emt 0:00:21]} 21. Bxf6 {[%emt 0:00:25]} Bxf4+ {[%emt 0:00:02]} 22. Kf2 {[%emt 0:00:11] [#]} g4 {[%emt 0:00:58]} ({Better is} 22... Bxd2 $1 $17 23. Bxg5 (23. Nxd2 $2 Rf8 $19) 23... Bxg5 24. Nxg5 h5) 23. Bg5 {[%emt 0:02:42]} Bxg5 $1 {[%emt 0:00:11]} 24. Nxg5 {[%emt 0:00:06]} h6 {[%emt 0:00:01]} 25. Ngf3 {[%emt 0:05:19]} gxf3 {[%emt 0:01:01]} 26. Rg1+ {[%emt 0:00:17]} Kf7 {[%emt 0:03:32]} 27. Nxf3 {[%emt 0:01:27]} Kf6 {[%emt 0:00:31]} (27... h5 $17 28. Rg5 Bg4) 28. Nh4 {[%emt 0:00:41]} Bf5 {[%emt 0:01:28]} 29. Kf3 {[%emt 0:02:45]} (29. Nxf5 $11 {keeps the balance.} Kxf5 30. Rg7) 29... h5 {[%emt 0:01:37]} 30. Nxf5 {[%emt 0:01:01]} Kxf5 {[%emt 0:00:03]} 31. Rg7 {[%emt 0:00:04]} Rh8 {[%emt 0:05:11]} 32. Kg3 {[%emt 0:01:13]} Rb8 {[%emt 0:06:31]} (32... Rh6 $17 33. Ra7 Rg6+ 34. Kh3 Ke5 35. Rxa6 Kd4) 33. Kh4 $2 {[%emt 0:05:32]} (33. Rh7 $11) 33... Ke5 {[%emt 0:01:17]} 34. Ra7 {[%emt 0:04:13]} Rb6 {[%emt 0:04:19]} 35. a4 $1 {[%emt 0:03:41]} c4 {[%emt 0:00:45]} 36. dxc4 {[%emt 0:00:41]} dxc4 {[%emt 0:00:03]} 37. a5 {[%emt 0:03:02]} Rb4 {[%emt 0:00:54]} ({Don't go for} 37... cxb3 $2 38. axb6 b2 39. Re7+ Kd6 40. Re1 $18) 38. bxc4 {[%emt 0:00:06]} Rxc4+ {[%emt 0:00:08]} 39. Kxh5 {[%emt 0:00:06]} Rxc2 {[%emt 0:02:01]} 40. Rxa6 {[%emt 0:00:00]} Kd5 {[%emt 0:00:00]} 41. Kg4 {[%emt 0:03:14]} Ra2 {[%emt 0:00:51]} 42. Kf3 {[%emt 0:01:07]} c5 {[%emt 0:00:22]} 43. Ke3 {[%emt 0:01:59]} Kc4 {[%emt 0:01:20]} 44. Ra8 $11 {[%emt 0:00:33]} Ra3+ {[%emt 0:02:19]} 45. Kd2 {[%emt 0:01:28]} Kb5 {[%emt 0:01:37]} 46. Rb8+ {[%emt 0:01:01]} Ka6 {[%emt 0:01:07]} 47. Rc8 {[%emt 0:00:17]} Rxa5 {[%emt 0:00:08]} 48. Ra8+ {[%emt 0:00:06]} Kb5 {[%emt 0:00:03]} 49. Rxa5+ {[%emt 0:00:07]} Kxa5 {[%emt 0:00:01]} 50. Kc3 {[%emt 0:00:06]} 1/2-1/2